fUST/lending_fUST_20240812
["ID","MTS","AMOUNT","RATE_DAILY","PERIOD"]
[334685937,1723469467413,-1222.02,0.00021917,3]
[334685938,1723469467425,-6707.8,0.00021917,3]
[334685939,1723469467435,-500.0,0.00021917,3]
[334685940,1723469467444,-500.0,0.00021917,3]
[334685941,1723469467454,-151.0,0.00021918,2]
[334685942,1723469467463,-151.0,0.00021918,2]
[334685943,1723469467472,-151.0,0.00021918,2]
[334685944,1723469467482,-151.0,0.00021918,2]
[334685945,1723469467491,-151.0,0.00021918,2]
[334685946,1723469467501,-151.0,0.00021918,2]
[334685947,1723469467510,-151.0,0.00021918,2]
[334685948,1723469467520,-151.0,0.00021918,2]
[334685949,1723469467529,-151.0,0.00021918,2]
[334685950,1723469467538,-151.0,0.00021918,2]
[334685951,1723469467548,-151.0,0.00021918,2]
[334685952,1723469467558,-151.0,0.00021918,2]
[334685953,1723469467567,-151.0,0.00021918,2]
[334685954,1723469467577,-151.0,0.00021918,2]
[334685955,1723469467586,-272.096671,0.00021918,2]
[334685956,1723469467596,-161.660731,0.00021918,2]
[334685957,1723469467605,-160.44409473,0.00021918,2]
[334685958,1723469467615,-500.0,0.00021918,2]
[334685959,1723469467624,-500.0,0.00021918,2]
[334685960,1723469467633,-500.0,0.00021918,2]
[334685961,1723469467643,-500.0,0.00021918,2]
[334685962,1723469467652,-500.0,0.00021918,2]
[334685963,1723469467664,-500.0,0.00021918,2]
[334685964,1723469467673,-500.0,0.00021918,2]
[334685965,1723469467683,-500.0,0.00021918,2]
[334685966,1723469467693,-500.0,0.00021918,2]
[334685967,1723469467703,-500.0,0.00021918,2]
[334685968,1723469467713,-500.0,0.00021918,2]
[334685969,1723469467723,-546.63075685,0.00021918,2]
[334685970,1723469467732,-500.0,0.00021918,2]
[334685971,1723469467741,-500.0,0.00021918,2]
[334685972,1723469467751,-500.0,0.00021918,2]
[334685973,1723469467760,-500.0,0.00021918,2]
[334685974,1723469467771,-500.0,0.00021918,2]
[334685975,1723469467781,-500.0,0.00021918,2]
[334685976,1723469467791,-500.0,0.00021918,2]
[334685977,1723469467801,-500.0,0.00021918,2]
[334685978,1723469467811,-500.0,0.00021918,2]
[334685979,1723469467821,-500.0,0.00021918,2]
[334685980,1723469467831,-500.0,0.00021918,2]
[334685981,1723469467841,-500.0,0.00021918,2]
[334685982,1723469467851,-500.0,0.00021918,2]
[334685983,1723469467860,-200.0,0.00021973,2]
[334685984,1723469467870,-200.0,0.00021973,2]
[334685985,1723469467880,-303.91108867,0.00021973,2]
[334685986,1723469467892,-1022.0,0.00022,2]
[334685987,1723469467901,-1000.0,0.00022,2]
[334685988,1723469467916,-1062.17757433,0.00022,2]
[334685989,1723469467926,-2064.48364089,0.00022,2]
[334685990,1723469467937,-555.27930308,0.00022,2]
[334685991,1723469467946,-1063.07510205,0.00022,2]
[334685992,1723469467956,-4353.77578525,0.00022,30]
[334685993,1723469467965,-302.54622906,0.00022,2]
[334685994,1723469467975,-154.74467129,0.00022,2]
[334685995,1723469467984,-302.51602579,0.00022,2]
[334685996,1723469467993,-2127.54848257,0.00022037,2]
[334685997,1723469468003,-294.6834504,0.0002211,2]
[334685998,1723469468013,-3048.38459061,0.0002217,2]
[334685999,1723469468022,-529.41,0.00022191,3]
[334686000,1723469468031,-500.0,0.00022191,3]
[334686001,1723469468040,-500.0,0.00022191,3]
[334686002,1723469468050,-500.0,0.00022191,3]
[334686003,1723469468059,-593.5,0.00022191,3]
[334686004,1723469468070,-500.0,0.00022191,3]
[334686005,1723469468079,-500.0,0.00022191,3]
[334686006,1723469468088,-430.52072883,0.00022191,3]
[334686007,1723469468098,-551.48,0.00022191,3]
[334686008,1723469468107,-668.11,0.00022191,3]
[334686009,1723469468116,-500.0,0.00022191,3]
[334686010,1723469468126,-500.0,0.00022191,3]
[334686011,1723469468135,-632.05,0.00022191,3]
[334686012,1723469468144,-844.16,0.00022191,3]
[334686013,1723469468156,-517.57,0.00022191,3]
[334686014,1723469468166,-862.33,0.00022191,3]
[334686015,1723469468176,-500.0,0.00022191,3]
[334686016,1723469468185,-500.0,0.00022191,3]
[334686017,1723469468194,-500.0,0.00022191,3]
[334686018,1723469468204,-500.0,0.00022191,3]
[334686019,1723469468213,-500.0,0.00022191,3]
[334686020,1723469468222,-500.0,0.00022191,3]
[334686021,1723469468232,-677.54,0.00022191,3]
[334686022,1723469468242,-500.0,0.00022191,3]
[334686023,1723469468252,-500.0,0.00022191,3]
[334686024,1723469468261,-500.0,0.00022191,3]
[334686025,1723469468270,-500.0,0.00022191,3]
[334686026,1723469468280,-500.0,0.00022191,3]
[334686027,1723469468289,-1210.07,0.00022191,3]
[334686028,1723469468298,-500.0,0.00022191,3]
[334686029,1723469468307,-441.75533581,0.00022191,3]
[334686030,1723469468317,-500.0,0.00022191,3]
[334686031,1723469468326,-500.0,0.00022191,3]
[334686032,1723469468335,-744.34,0.00022191,3]
[334686033,1723469468345,-500.0,0.00022191,3]
[334686034,1723469468354,-500.0,0.00022191,3]
[334686035,1723469468363,-908.63,0.00022191,3]
[334686036,1723469468372,-2774.04,0.00022191,3]
[334686037,1723469468382,-568.52,0.00022191,3]
[334686038,1723469468391,-500.0,0.00022191,3]
[334686039,1723469468401,-500.0,0.00022191,3]
[334686040,1723469468414,-500.0,0.00022191,3]
[334686041,1723469468425,-500.0,0.00022191,3]
[334686042,1723469468434,-500.0,0.00022191,3]
[334686043,1723469468443,-500.0,0.00022191,3]
[334686044,1723469468453,-1030.4,0.00022191,3]
[334686045,1723469468462,-817.35,0.00022191,3]
[334686046,1723469468471,-501.87039869,0.00022191,3]
[334686047,1723469468480,-500.0,0.00022191,3]
[334686048,1723469468489,-500.0,0.00022191,3]
[334686049,1723469468499,-990.53,0.00022191,3]
[334686050,1723469468508,-500.0,0.00022191,3]
[334686051,1723469468517,-500.0,0.00022191,3]
[334686052,1723469468526,-500.0,0.00022191,3]
[334686053,1723469468535,-991.56,0.00022191,3]
[334686054,1723469468544,-500.0,0.00022191,3]
[334686055,1723469468554,-500.0,0.00022191,3]
[334686056,1723469468563,-1364.52,0.00022191,3]
[334686057,1723469468572,-876.13,0.00022191,3]
[334686058,1723469468581,-500.0,0.00022191,3]
[334686059,1723469468590,-500.0,0.00022191,3]
[334686060,1723469468599,-222.21444924,0.00022191,3]
[334686061,1723469468608,-500.0,0.00022191,3]
[334686062,1723469468618,-500.0,0.00022191,3]
[334686063,1723469468627,-679.91,0.00022191,3]
[334686064,1723469468636,-500.0,0.00022191,3]
[334686065,1723469468646,-500.0,0.00022191,3]
[334686066,1723469468657,-506.09607018,0.00022191,3]
[334686067,1723469468666,-1002.93,0.00022191,3]
[334686068,1723469468676,-762.2,0.00022191,3]
[334686069,1723469468685,-1147.29,0.00022191,3]
[334686070,1723469468694,-500.0,0.00022191,3]
[334686071,1723469468703,-500.0,0.00022191,3]
[334686072,1723469468712,-500.0,0.00022191,3]
[334686073,1723469468722,-500.0,0.00022191,3]
[334686074,1723469468731,-631.6,0.00022191,3]
[334686075,1723469468740,-320.76613863,0.00022191,3]
[334686076,1723469468750,-499.59422874,0.00022191,3]
[334686077,1723469468759,-1557.04,0.00022191,3]
[334686078,1723469468770,-575.28,0.00022191,3]
[334686079,1723469468779,-875.31,0.00022191,3]
[334686080,1723469468789,-500.0,0.00022191,3]
[334686081,1723469468798,-609.93,0.00022191,3]
[334686082,1723469468807,-625.18,0.00022191,3]
[334686083,1723469468817,-500.0,0.00022191,3]
[334686084,1723469468827,-500.0,0.00022191,3]
[334686085,1723469468836,-500.0,0.00022191,3]
[334686086,1723469468845,-791.62,0.00022191,3]
[334686087,1723469468854,-500.0,0.00022191,3]
[334686088,1723469468864,-500.0,0.00022191,3]
[334686089,1723469468874,-500.0,0.00022191,3]
[334686090,1723469468884,-634.92,0.00022191,3]
[334686091,1723469468897,-606.89,0.00022191,3]
[334686092,1723469468907,-500.0,0.00022191,3]
[334686093,1723469468918,-500.0,0.00022191,3]
[334686094,1723469468928,-829.85,0.00022191,3]
[334686095,1723469468938,-2119.11,0.00022191,3]
[334686096,1723469468953,-597.81,0.00022191,3]
[334686097,1723469468962,-500.0,0.00022191,3]
[334686098,1723469468974,-500.0,0.00022191,3]
[334686099,1723469468985,-1424.09,0.00022191,3]
[334686100,1723469468996,-500.0,0.00022191,3]
[334686101,1723469469005,-500.0,0.00022191,3]
[334686102,1723469469014,-500.0,0.00022191,3]
[334686103,1723469469024,-1052.48,0.00022191,3]
[334686104,1723469469033,-709.13,0.00022191,3]
[334686105,1723469469043,-581.43,0.00022191,3]
[334686106,1723469469052,-500.0,0.00022191,3]
[334686107,1723469469063,-500.0,0.00022191,3]
[334686108,1723469469072,-521.61,0.00022191,3]
[334686109,1723469469081,-1053.49,0.00022191,3]
[334686110,1723469469090,-500.0,0.00022191,3]
[334686111,1723469469100,-1614.62,0.00022191,3]
[334686112,1723469469109,-518.21,0.00022191,3]
[334686113,1723469469119,-1139.51,0.00022191,3]
[334686114,1723469469128,-500.0,0.00022191,3]
[334686115,1723469469137,-500.0,0.00022191,3]
[334686116,1723469469147,-1544.26,0.00022191,3]
[334686117,1723469469158,-1451.28,0.00022191,3]
[334686118,1723469469168,-568.33300684,0.00022191,2]
[334686119,1723469469178,-1482.26,0.00022191,3]
[334686120,1723469469188,-500.0,0.00022191,3]
[334686121,1723469469197,-500.0,0.00022191,3]
[334686122,1723469469207,-500.0,0.00022191,3]
[334686123,1723469469216,-2342.91,0.00022191,3]
[334686124,1723469469225,-500.0,0.00022191,3]
[334686125,1723469469234,-1334.65,0.00022191,3]
[334686126,1723469469244,-500.0,0.00022191,3]
[334686127,1723469469253,-500.0,0.00022191,3]
[334686128,1723469469263,-792.5,0.00022191,3]
[334686129,1723469469272,-500.0,0.00022191,3]
[334686130,1723469469282,-6539.4,0.00022191,3]
[334686131,1723469469292,-500.0,0.00022191,3]
[334686132,1723469469301,-534.12,0.00022191,2]
[334686133,1723469469311,-1001.68,0.00022191,3]
[334686134,1723469469320,-500.0,0.00022191,3]
[334686135,1723469469330,-1795.55,0.00022191,3]
[334686136,1723469469339,-500.0,0.00022191,3]
[334686137,1723469469349,-500.0,0.00022191,3]
[334686138,1723469469359,-500.0,0.00022191,3]
[334686139,1723469469369,-1931.14,0.00022191,3]
[334686140,1723469469378,-500.0,0.00022191,3]
[334686141,1723469469389,-500.0,0.00022191,3]
[334686142,1723469469399,-500.0,0.00022191,3]
[334686143,1723469469411,-1101.24,0.00022191,3]
[334686144,1723469469421,-529.89,0.00022191,3]
[334686145,1723469469430,-761.7,0.00022191,3]
[334686146,1723469469441,-500.0,0.00022191,3]
[334686147,1723469469451,-769.72,0.00022191,3]
[334686148,1723469469460,-500.0,0.00022191,3]
[334686149,1723469469470,-1645.37,0.00022191,3]
[334686150,1723469469480,-530.52,0.00022191,3]
[334686151,1723469469490,-536.4,0.00022191,3]
[334686152,1723469469499,-500.0,0.00022191,3]
[334686153,1723469469509,-854.3,0.00022191,3]
[334686154,1723469469518,-7227.56,0.00022191,3]
[334686155,1723469469528,-500.0,0.00022191,3]
[334686156,1723469469538,-500.0,0.00022191,3]
[334686157,1723469469548,-500.0,0.00022191,3]
[334686158,1723469469557,-743.55,0.00022191,3]
[334686159,1723469469567,-1337.68,0.00022191,3]
[334686160,1723469469577,-500.0,0.00022191,3]
[334686161,1723469469587,-313.66728236,0.00022191,3]
[334686162,1723469469596,-500.0,0.00022191,3]
[334686163,1723469469605,-2582.81,0.00022191,3]
[334686164,1723469469615,-500.0,0.00022191,3]
[334686165,1723469469625,-500.0,0.00022191,3]
[334686166,1723469469634,-827.28,0.00022191,3]
[334686167,1723469469644,-500.0,0.00022191,3]
[334686168,1723469469653,-786.74,0.00022191,3]
[334686169,1723469469672,-1740.42,0.00022191,3]
[334686170,1723469469682,-1325.33,0.00022191,3]
[334686171,1723469469691,-500.0,0.00022191,3]
[334686172,1723469469701,-500.0,0.00022191,3]
[334686173,1723469469710,-932.14,0.00022191,3]
[334686174,1723469469720,-500.0,0.00022191,3]
[334686175,1723469469730,-500.0,0.00022191,3]
[334686176,1723469469740,-1941.27,0.00022191,3]
[334686177,1723469469750,-500.0,0.00022191,3]
[334686178,1723469469760,-587.25,0.00022191,3]
[334686179,1723469469771,-500.0,0.00022191,3]
[334686180,1723469469781,-500.0,0.00022191,3]
[334686181,1723469469791,-500.0,0.00022191,3]
[334686182,1723469469801,-500.0,0.00022191,3]
[334686183,1723469469811,-3749.33,0.00022191,3]
[334686184,1723469469821,-8703.45,0.00022191,3]
[334686185,1723469469831,-2530.68,0.00022191,3]
[334686186,1723469469842,-500.0,0.00022191,3]
[334686187,1723469469851,-1828.7,0.00022191,3]
[334686188,1723469469861,-5397.21,0.00022191,3]
[334686189,1723469469871,-675.95,0.00022191,3]
[334686190,1723469469880,-500.0,0.00022191,3]
[334686191,1723469469893,-2519.31,0.00022191,3]
[334686192,1723469469905,-1577.49,0.00022191,3]
[334686193,1723469469919,-500.0,0.00022191,3]
[334686194,1723469469931,-522.99554316,0.00022191,3]
[334686195,1723469469941,-500.0,0.00022191,3]
[334686196,1723469469951,-500.0,0.00022191,3]
[334686197,1723469469962,-500.0,0.00022191,3]
[334686198,1723469469972,-500.0,0.00022191,3]
[334686199,1723469469981,-1656.99,0.00022191,3]
[334686200,1723469469991,-500.0,0.00022191,3]
[334686201,1723469470001,-1691.43,0.00022191,3]
[334686202,1723469470011,-500.0,0.00022191,3]
[334686203,1723469470021,-2631.68,0.00022191,3]
[334686204,1723469470030,-988.56,0.00022191,3]
[334686205,1723469470040,-1109.71,0.00022191,3]
[334686206,1723469470049,-500.0,0.00022191,3]
[334686207,1723469470060,-500.0,0.00022191,3]
[334686208,1723469470070,-12516.51,0.00022191,3]
[334686209,1723469470079,-668.98,0.00022191,3]
[334686210,1723469470089,-2464.56,0.00022191,3]
[334686211,1723469470099,-500.0,0.00022191,3]
[334686212,1723469470109,-500.0,0.00022191,3]
[334686213,1723469470118,-500.0,0.00022191,3]
[334686214,1723469470128,-1609.68,0.00022191,3]
[334686215,1723469470138,-825.74,0.00022191,3]
[334686216,1723469470148,-500.0,0.00022191,3]
[334686217,1723469470160,-3882.9,0.00022191,3]
[334686218,1723469470169,-13392.86,0.00022191,3]
[334686219,1723469470178,-1157.59,0.00022191,3]
[334686220,1723469470189,-500.0,0.00022191,3]
[334686221,1723469470198,-500.0,0.00022191,3]
[334686222,1723469470207,-954.32,0.00022191,3]
[334686223,1723469470218,-500.0,0.00022191,3]
[334686224,1723469470228,-2248.77,0.00022191,3]
[334686225,1723469470238,-500.0,0.00022191,3]
[334686226,1723469470248,-1443.84,0.00022191,3]
[334686227,1723469470258,-500.0,0.00022191,3]
[334686228,1723469470267,-1824.79,0.00022191,3]
[334686229,1723469470277,-461.29650984,0.00022191,3]
[334686230,1723469470599,-38.70349016,0.00022191,3]
[334686231,1723469470609,-1251.52186962,0.00022191,3]
[334686232,1723469614779,273.37336231,9.9e-05,2]
[334686233,1723469682522,834.21452004,9.9e-05,2]
[334686234,1723469696863,506.42477862,0.00012,2]
[334686235,1723469709149,850.24651816,0.00012,2]
[334686236,1723469738396,497.26995015,0.00014545,2]
[334686237,1723469763124,967.77451361,0.00014545,2]
[334686238,1723469782718,2356.60374145,0.00015,2]
[334686239,1723469815449,159.795998,0.00014247,2]
[334686241,1723470306089,166.203547,0.00014247,2]
[334686243,1723470306371,150.43106842,0.00025099,59]
[334686244,1723470428187,-1581.5314073,0.00015639,2]
[334686245,1723470428211,-250.0,0.0001564,2]
[334686246,1723470428234,-250.0,0.00015683,2]
[334686247,1723470428258,-1500.0,0.00015708,2]
[334686248,1723470428280,-250.0,0.00015726,2]
[334686249,1723470428302,-250.0,0.00015769,2]
[334686250,1723470428325,-250.0,0.00015811,2]
[334686251,1723470428347,-250.0,0.00015854,2]
[334686252,1723470428384,-250.0,0.00015897,2]
[334686253,1723470428408,-250.0,0.0001594,2]
[334686254,1723470428429,-813.18375468,0.00015952,2]
[334686255,1723470428451,-156.7608745,0.00015954,2]
[334686256,1723470428473,-250.0,0.00015983,2]
[334686257,1723470428496,-250.0,0.00016026,2]
[334686258,1723470428519,-250.0,0.00016069,2]
[334686259,1723470428540,-481.72126829,0.00016109,2]
[334686260,1723470428564,-250.0,0.00016112,2]
[334686261,1723470428586,-250.0,0.00016155,2]
[334686262,1723470428616,-248.98752278,0.00016159,2]
[334686263,1723470428638,-250.0,0.00016198,2]
[334686264,1723470428659,-255.97228565,0.00016209,2]
[334686265,1723470428682,-203.88272635,0.00016209,2]
[334686266,1723470428706,-250.0,0.0001624,2]
[334686267,1723470428730,-300.0,0.00016246,2]
[334686268,1723470428751,-196.281108,0.00016247,2]
[334686269,1723470428772,-191.84164045,0.00016247,2]
[334686270,1723470428797,-250.0,0.00016283,2]
[334686271,1723470428818,-666.26224584,0.00016309,2]
[334686272,1723470428841,-250.0,0.00016326,2]
[334686273,1723470428865,-250.0,0.00016369,2]
[334686274,1723470428888,-250.0,0.00016412,2]
[334686275,1723470428912,-153.0,0.00016438,2]
[334686276,1723470428936,-153.0,0.00016438,2]
[334686277,1723470428960,-153.0,0.00016438,2]
[334686278,1723470428985,-250.0,0.00016455,2]
[334686279,1723470429007,-500.0,0.00016816,2]
[334686280,1723470429030,-180.23414793,0.00016956,2]
[334686281,1723470429054,-199.12175068,0.00016956,2]
[334686282,1723470429077,-500.0,0.00016956,2]
[334686283,1723470429101,-500.0,0.00016956,2]
[334686284,1723470429135,-500.0,0.00016956,2]
[334686285,1723470429163,-500.0,0.00016956,2]
[334686286,1723470429186,-500.0,0.00016956,2]
[334686287,1723470429210,-200.0,0.00016956,2]
[334686288,1723470429233,-24900.0,0.00016957,2]
[334686289,1723470429257,-789.4755532,0.0001706,2]
[334686290,1723470429279,-500.0,0.00017701,2]
[334686291,1723470429302,-183.373011,0.00017758,2]
[334686292,1723470429331,-183.373011,0.00017802,2]
[334686293,1723470429356,-155.1188739,0.0001784,2]
[334686294,1723470429383,-183.373011,0.00017847,2]
[334686295,1723470429405,-420.0,0.00017871,2]
[334686296,1723470429427,-199.41069949,0.00018488,2]
[334686297,1723470429452,-500.0,0.00018488,2]
[334686298,1723470429476,-500.0,0.00018488,2]
[334686299,1723470429500,-500.0,0.00018488,2]
[334686300,1723470429523,-500.0,0.00018488,2]
[334686301,1723470429546,-500.0,0.00018488,2]
[334686302,1723470429571,-313.8048204,0.00018488,2]
[334686303,1723470429595,-500.0,0.00018488,2]
[334686304,1723470429635,-500.0,0.00018488,2]
[334686305,1723470429661,-500.0,0.00018488,2]
[334686306,1723470429687,-400.0,0.00018488,2]
[334686307,1723470429711,-42383.12825852,0.00018489,2]
[334686308,1723470429737,-500.0,0.00018633,2]
[334686309,1723470429761,-160.7,0.00018657,3]
[334686310,1723470429787,-106400.37926068,0.00018657,2]
[334686311,1723470429815,-1087.85136425,0.00018672,2]
[334686312,1723470429840,-1087.85136424,0.00018724,2]
[334686313,1723470429872,-482.1,0.00018763,3]
[334686314,1723470429896,-942.79371311,0.00018773,2]
[334686315,1723470430140,-8490.1156132,0.00018773,2]
[334686316,1723470430167,-1087.85136424,0.00018776,2]
[334686317,1723470430188,-1087.85136424,0.00018827,2]
[334686318,1723470430209,-1087.85136424,0.00018879,2]
[334686319,1723470430230,-3090.72018399,0.00018899,2]
[334686320,1723470430254,-500.0,0.00018904,2]
[334686321,1723470430276,-1612.28857669,0.00018921,2]
[334686322,1723470430300,-22029.21366097,0.00018935,2]
[334686323,1723470430323,-32605.47450624,0.00018935,2]
[334686324,1723470442158,-51389.19145451,0.00018935,2]
[334686325,1723470454108,-1184.89185955,0.00018935,2]
[334686326,1723470454131,-277.46411292,0.0001895,2]
[334686327,1723470454162,-277.46411292,0.0001895,2]
[334686328,1723470454190,-35234.95832657,0.00018959,2]
[334686346,1723470550144,-2686.17644967,0.00016338,2]
[334686347,1723470550168,-153.0,0.00016438,2]
[334686348,1723470550200,-153.0,0.00016438,2]
[334686349,1723470550223,-153.0,0.00016438,2]
[334686350,1723470550245,-153.0,0.00016438,2]
[334686351,1723470550269,-300.0,0.00017644,2]
[334686352,1723470550293,-300.0,0.00017644,2]
[334686353,1723470550316,-24900.0,0.00017645,2]
[334686354,1723470550342,-250.0,0.00018094,2]
[334686355,1723470550366,-250.0,0.00018143,2]
[334686356,1723470550389,-250.0,0.00018193,2]
[334686357,1723470550413,-250.0,0.00018243,2]
[334686358,1723470550444,-300.0,0.00018291,2]
[334686359,1723470550468,-250.0,0.00018292,2]
[334686360,1723470550491,-250.0,0.00018342,2]
[334686361,1723470550514,-250.0,0.00018392,2]
[334686362,1723470550539,-250.0,0.00018441,2]
[334686363,1723470550563,-250.0,0.00018491,2]
[334686364,1723470550586,-250.0,0.0001854,2]
[334686365,1723470550612,-250.0,0.0001859,2]
[334686366,1723470550635,-250.0,0.0001864,2]
[334686367,1723470550659,-250.0,0.00018689,2]
[334686368,1723470550689,-250.0,0.00018739,2]
[334686370,1723470594204,153.0,0.00016438,2]
[334686371,1723470594429,94.20411202,0.00016438,2]
[334686372,1723470594467,58.79588798,0.00016438,2]
[334686373,1723470619505,182.66751546,0.0001501,2]
[334686374,1723470619529,199.38818849,0.0001501,2]
[334686375,1723470619569,1895.11929605,0.0001501,2]
[334686407,1723470632835,-500.0,0.00018738,2]
[334686409,1723470632845,-399.66337428,0.00018738,2]
[334686411,1723470632857,-500.0,0.00018738,2]
[334686413,1723470632871,-500.0,0.00018738,2]
[334686415,1723470632882,-2208.64533816,0.00018739,2]
[334686417,1723470632894,-43455.54159405,0.00018739,2]
[334686435,1723470633224,-7954.59629264,0.00018739,2]
[334686436,1723470633236,-5921.85,0.00018739,2]
[334686450,1723470639312,-38.17736795,0.00018738,2]
[334686451,1723470639324,-461.82263205,0.00018738,2]
[334686452,1723470639334,-500.0,0.00018738,2]
[334686453,1723470639343,-500.0,0.00018738,2]
[334686454,1723470639353,-6116.06226295,0.00018739,2]
[334686455,1723470639860,-34321.42967789,0.00018739,2]
[334686456,1723470640028,-1745.45049261,0.00018739,2]
[334686457,1723470640039,-913.41210079,0.00018739,2]
[334686458,1723470640048,-154.77557542,0.00018739,2]
[334686459,1723470640057,-250.0,0.00018788,2]
[334686460,1723470640070,-2912.86683849,0.00018835,2]
[334686461,1723470640079,-250.0,0.00018838,2]
[334686462,1723470640089,-250.0,0.00018888,2]
[334686463,1723470640099,-500.0,0.00018904,2]
[334686464,1723470640110,-342.39119771,0.00018921,2]
[334686465,1723470640120,-154.77557233,0.00018921,2]
[334686466,1723470640130,-160.30213643,0.00018921,2]
[334686467,1723470640141,-250.0,0.00018937,2]
[334686468,1723470640150,-321.4,0.00018939,3]
[334686469,1723470640159,-210.07711325,0.00018945,2]
[334686470,1723470640169,-300.0,0.00018948,2]
[334686471,1723470640178,-300.0,0.00018948,2]
[334686472,1723470640188,-5464.3589994,0.00018949,2]
[334686566,1723470643768,-342.39119771,0.0001891,2]
[334686567,1723470643777,-23667.41409426,0.00018949,2]
[334686568,1723470643789,-5726.87980806,0.00018949,2]
[334686569,1723470643801,-5259.06000001,0.00018949,2]
[334686570,1723470643869,-41205.64357617,0.00018949,2]
[334686571,1723470643878,-11014.60683048,0.00018949,2]
[334686572,1723470643888,-243970.069434,0.00018949,2]
[334686573,1723470643898,-999.97034271,0.00018958,2]
[334686574,1723470643907,-250.0,0.00018987,2]
[334686575,1723470643916,-250.0,0.00019037,2]
[334686576,1723470643925,-522.8794631,0.00019046,2]
[334686577,1723470643935,-207.04515842,0.00019092,3]
[334686578,1723470643944,-81300.96879289,0.00019137,2]
[334686595,1723470647621,-600.0,0.00018738,2]
[334686596,1723470647631,-22.38768501,0.00019137,2]
[334686597,1723470647640,-1644.88536636,0.00019139,7]
[334686598,1723470647650,-301.29579535,0.00019147,2]
[334686599,1723470647659,-301.29579535,0.00019153,2]
[334686600,1723470647670,-1804.47504061,0.00019177,2]
[334686601,1723470647679,-9652.40516915,0.00019177,2]
[334686602,1723470647688,-5544.12336852,0.00019177,2]
[334686603,1723470647698,-161.896212,0.00019178,2]
[334686604,1723470647707,-165.628358,0.00019178,2]
[334686605,1723470647716,-250.0,0.00019178,2]
[334686606,1723470647731,-725.04,0.000192,2]
[334686607,1723470647741,-21320.2998492,0.000192,2]
[334686610,1723470807054,10000.0,0.0001501,2]
[334686611,1723470844950,226.52882823,0.0001501,2]
[334686612,1723470917264,1640.0,0.0001501,2]
[334686613,1723470969270,159.795998,0.00014247,2]
[334686614,1723471110384,2466.64894838,0.0001501,2]
[334686615,1723471177331,7533.35,0.0001501,2]
[334686616,1723471193726,154.77557542,0.0001501,2]
[334686617,1723471198767,1745.45049261,0.0001501,2]
[334686619,1723471217079,10000.0,0.0001501,2]
[334686621,1723471276804,10000.0,0.0001501,2]
[334686622,1723471277573,913.41210079,0.0001501,2]
[334686627,1723471455315,10000.0,0.0001501,2]
[334686628,1723471457593,157.303351,0.00014247,2]
[334686631,1723471628152,-196.82657408,0.00015952,2]
[334686632,1723471628173,-1612.06535955,0.00015954,2]
[334686633,1723471628201,-154.79102285,0.00016038,2]
[334686634,1723471628223,-153.0,0.00016438,2]
[334686635,1723471628246,-153.0,0.00016438,2]
[334686636,1723471628266,-160.30213643,0.00016532,2]
[334686637,1723471628288,-269.62008275,0.00017019,7]
[334686638,1723471628309,-154.77557233,0.00017019,2]
[334686639,1723471628334,-250.0,0.0001716,2]
[334686640,1723471628357,-250.0,0.00017207,2]
[334686641,1723471628381,-250.0,0.00017254,2]